bitfinex/quotes_ETHUSD_20241212
["timestamp","ask_amount","ask_price","bid_price","bid_amount"]
[1734020886919,0.55,3949.9,3949.2,1.4772]
[1734020887646,0.55,3949.9,3949.0,0.25196306]
[1734020887647,0.55,3949.7,3949.0,0.25196306]
[1734020887848,0.80732,3949.7,3949.0,0.25196306]
[1734020888012,0.88634425,3949.7,3949.0,0.25196306]
[1734020888352,0.80732,3949.7,3949.0,0.25196306]
[1734020888709,3.75702449,3949.7,3949.0,0.25196306]
[1734020889054,8.94095014,3949.7,3949.0,0.25196306]
[1734020889270,10.50355073,3949.7,3949.0,0.25196306]
[1734020889550,10.68653739,3949.7,3949.0,0.25196306]
[1734020889735,6.49970449,3949.1,3949.0,0.25196306]
[1734020889937,6.49970449,3949.1,3947.4,1.4968]
[1734020889938,3.55,3948.3,3947.4,1.4968]
[1734020890113,0.55,3948.3,3947.4,1.4968]
[1734020890633,1.9827,3948.3,3947.4,1.4968]
[1734020891368,1.9827,3948.3,3944.2,0.26331169]
[1734020891369,0.25,3946.1,3943.5,1.487]
[1734020891556,3.57533322,3946.0,3943.5,1.487]
[1734020891757,0.67750377,3945.9,3943.5,1.487]
[1734020892061,0.57533322,3945.8,3943.7,2.0]
[1734020892217,0.02533322,3946.2,3943.8,1.43]
[1734020892417,0.02533322,3946.2,3944.1,2.0]
[1734020892612,0.55,3946.3,3944.2,1.71694106]
[1734020892846,0.74672,3946.3,3944.5,2.0]
[1734020893057,0.55,3946.3,3944.7,1.43]
[1734020893351,0.02533322,3947.0,3944.7,1.43]
[1734020893554,0.57533322,3946.9,3944.7,1.43]
[1734020894080,0.02533322,3946.9,3944.7,1.43]
[1734020894362,0.02533322,3946.9,3944.7,3.43]
[1734020894538,0.55,3946.7,3944.7,3.43]
[1734020894854,0.02533322,3946.6,3944.7,3.43]
[1734020895054,0.55,3946.7,3945.1,2.0]
[1734020895365,0.12792021,3947.4,3945.6,1.525]
[1734020895861,1.44053322,3947.6,3945.9,2.0]
[1734020895862,1.4152,3947.6,3945.9,2.0]
[1734020896163,1.4152,3947.6,3946.4,1.4596]
[1734020896164,0.14152,3947.6,3946.4,1.4596]
[1734020896318,0.02533322,3947.5,3946.4,1.4596]
[1734020896515,2.94970449,3947.5,3945.8,1.4678]
[1734020896717,0.02533322,3947.4,3945.8,1.4678]
[1734020897720,0.55,3947.3,3945.8,1.4678]
[1734020898330,0.02533322,3947.2,3945.8,1.4678]
[1734020899736,1.487,3947.1,3945.8,1.4678]
[1734020900052,0.20623332,3947.0,3945.8,1.4678]
[1734020900476,1.487,3947.1,3945.8,1.4678]
[1734020900764,0.02533322,3947.0,3945.8,1.4678]
[1734020901122,0.55,3947.3,3945.8,1.4678]
[1734020901358,0.55,3948.0,3945.9,2.0]
[1734020901536,0.15374699,3948.1,3946.3,2.0]
[1734020902235,2.94970449,3948.0,3945.9,2.0]
[1734020902439,0.33567837,3947.9,3945.9,2.0]
[1734020902734,0.55,3947.8,3945.9,2.0]
[1734020902925,0.02533322,3947.7,3945.9,2.0]
[1734020903127,0.02533322,3947.7,3945.8,1.4678]
[1734020903329,0.02533322,3947.7,3945.9,2.0]
[1734020903645,0.55,3947.5,3945.9,2.0]
[1734020903851,0.55,3947.7,3945.9,2.0]
[1734020904085,0.02533322,3947.6,3945.9,2.0]
[1734020904558,0.57533322,3947.7,3945.9,2.0]
[1734020906121,1.4809,3947.8,3945.9,2.0]
[1734020906465,1.4809,3947.8,3945.8,1.49313677]
[1734020906466,1.4809,3947.8,3946.4,1.4116]
[1734020906623,1.67286589,3947.8,3946.4,1.4116]
[1734020907469,0.19196589,3947.8,3946.4,1.4116]
[1734020907692,0.55,3948.0,3946.4,1.4116]
[1734020908076,1.5411,3948.3,3946.4,3.945]
[1734020908391,0.55,3948.2,3946.4,3.945]
[1734020909463,1.5411,3948.3,3946.4,3.945]
[1734020909679,1.5411,3948.3,3946.9,2.0]
[1734020909900,1.5411,3948.3,3946.9,4.5337]
[1734020910183,1.69521,3948.3,3946.9,4.5337]
[1734020910742,1.6921596,3948.3,3946.9,4.5337]
[1734020911150,0.02533322,3948.2,3946.9,4.5337]
[1734020911365,1.6921596,3948.3,3946.9,4.5337]
[1734020912550,0.02533322,3948.2,3946.9,4.5337]
[1734020912749,0.1970825,3948.2,3946.9,4.5337]
[1734020913187,0.55,3948.1,3946.9,2.5337]
[1734020913478,0.1970825,3948.2,3946.9,2.5337]
[1734020913479,0.02533322,3948.0,3946.9,2.5337]
[1734020914592,0.1970825,3948.2,3946.9,2.5337]
[1734020915292,0.55,3948.1,3946.9,2.5337]
[1734020915474,0.25384643,3948.0,3946.9,2.5337]
[1734020915868,0.55,3947.9,3946.9,2.5337]
[1734020916287,1.46703322,3947.8,3946.9,2.5337]
[1734020917513,1.4417,3947.8,3946.9,2.5337]
[1734020917722,0.02533322,3947.7,3946.9,2.5337]
[1734020917861,0.20170332,3947.6,3946.9,2.5337]
[1734020918397,0.02533322,3947.5,3946.9,2.5337]
[1734020918571,0.57533322,3947.5,3946.9,2.5337]
[1734020920470,0.55,3947.3,3946.9,2.5337]
[1734020920680,3.55,3947.1,3946.9,2.5337]
[1734020920861,5.70472077,3947.0,3946.9,2.5337]
[1734020921060,5.67938755,3947.0,3946.9,2.5337]
[1734020922295,0.55,3946.9,3944.6,1.4862]
[1734020922534,1.9803,3946.3,3944.6,1.4862]
[1734020922797,0.02533322,3946.2,3944.6,1.4862]
[1734020923185,1.4303,3946.1,3943.7,1.4812]
[1734020923396,3.0,3945.9,3943.7,1.4812]
[1734020923578,0.57533322,3945.8,3943.7,1.4812]
[1734020923787,0.57533322,3945.8,3943.8,0.67107443]
[1734020923788,0.55,3945.6,3943.8,0.67107443]
[1734020923964,0.02533322,3945.5,3943.8,0.67107443]
[1734020924286,0.55,3945.6,3943.8,0.37747949]
[1734020924601,0.02533322,3945.5,3943.8,0.37747949]
[1734020925202,0.55,3945.6,3943.8,0.37747949]
[1734020925487,0.55,3946.0,3944.2,1.5236]
[1734020925817,1.4303,3946.1,3944.5,2.0]
[1734020926100,1.4303,3946.1,3944.6,1.5325]
[1734020926916,0.02533322,3946.0,3944.6,1.5325]
[1734020927202,1.4303,3946.1,3944.6,1.5325]
[1734020927364,1.4303,3946.1,3944.7,0.35325]
[1734020928133,1.4917,3946.6,3944.9,2.0]
[1734020928281,1.4917,3946.6,3945.0,1.4333]
[1734020928616,1.4917,3946.6,3945.0,3.9676]
[1734020929114,1.3061443,3948.3,3945.0,3.9676]
[1734020929115,1.4917,3948.1,3945.5,2.0]
[1734020929276,1.4917,3947.9,3945.6,1.6333]
[1734020929476,1.4917,3947.7,3945.6,1.6333]
[1734020929668,0.02533322,3947.6,3945.6,4.1678]
[1734020930534,0.02533322,3947.6,3945.7,1.5447]
[1734020930806,1.4917,3947.7,3946.1,1.5447]
[1734020930967,1.4917,3947.7,3946.2,0.35447]
[1734020931162,1.4917,3947.7,3946.2,2.88857]
[1734020931579,1.4917,3947.7,3946.4,2.0]
[1734020931776,2.9556061,3948.2,3946.4,2.0]
[1734020931777,0.02533322,3948.1,3946.5,1.4802]
[1734020932026,0.02533322,3948.1,3946.5,4.0141]
[1734020932179,0.15366332,3948.0,3946.6,0.28955306]
[1734020932381,0.02533322,3947.9,3946.6,2.5338]
[1734020932688,2.9556061,3947.7,3946.6,2.5338]
[1734020932888,0.55,3947.5,3946.6,2.5338]
[1734020933065,0.02533322,3947.4,3946.6,2.5338]
[1734020933870,1.4943,3947.6,3946.6,2.5338]
[1734020934121,3.47476322,3947.5,3946.6,2.5338]
[1734020934324,0.44943,3947.5,3946.6,2.5338]
[1734020934670,1.4943,3947.6,3946.7,1.4678]
[1734020935645,0.17899654,3948.0,3946.7,1.4678]
[1734020935809,0.02533322,3947.9,3946.7,1.4678]
[1734020936966,1.4168,3947.8,3946.6,2.5338]
[1734020937224,0.02533322,3947.7,3946.6,2.5338]
[1734020937523,0.14421332,3947.6,3946.6,2.5338]
[1734020937819,0.02533322,3947.5,3946.6,2.5338]
[1734020938780,0.14421332,3947.6,3946.6,2.5338]
[1734020939208,1.4168,3947.8,3946.7,1.433]
[1734020939386,0.15366332,3948.0,3946.7,1.433]
[1734020939387,0.02533322,3948.0,3946.7,1.433]
[1734020939680,1.44503322,3948.2,3946.7,1.433]
[1734020940323,1.4197,3948.2,3946.7,1.433]
[1734020940608,0.02533322,3948.1,3946.7,1.433]
[1734020940826,0.18258016,3948.1,3946.7,1.433]
[1734020941295,0.02533322,3948.0,3946.7,1.433]
[1734020941825,0.15724694,3948.1,3946.7,3.9668]
[1734020942396,0.02533322,3948.0,3946.7,3.9668]
[1734020942996,0.02533322,3948.0,3946.7,2.5338]
[1734020943197,1.5525,3948.6,3946.7,2.5338]
[1734020943198,0.02533322,3948.5,3946.8,1.4891]
[1734020943394,0.02533322,3948.5,3946.8,4.0228]
[1734020944299,1.5525,3948.6,3946.9,2.0]
[1734020944495,0.02533322,3948.5,3947.0,1.4448]
[1734020945301,0.02533322,3948.5,3947.0,3.9784]
[1734020945598,1.5525,3948.6,3947.0,3.9784]
[1734020945599,0.15778332,3948.4,3947.0,3.9784]
[1734020945799,0.02533322,3948.5,3947.0,3.9784]
[1734020946206,1.5525,3948.6,3947.0,3.9784]
[1734020947340,1.4978,3949.0,3947.1,1.4087]
[1734020947525,0.02533322,3948.9,3947.1,3.9422]
[1734020948103,0.12642378,3948.8,3947.1,3.9422]
[1734020948331,0.02533322,3948.7,3947.1,3.9422]
[1734020950850,1.5191,3948.6,3947.1,3.9422]
[1734020951020,0.02533322,3948.5,3947.1,3.9422]
[1734020952068,0.57533322,3948.5,3947.1,3.9422]
[1734020952213,0.02533322,3948.5,3947.1,3.9422]
[1734020952418,0.39435073,3948.4,3947.1,3.9422]
[1734020952724,0.02533322,3948.3,3947.1,3.9422]
[1734020953314,0.57533322,3948.3,3947.1,3.9422]
[1734020954334,0.02533322,3948.3,3947.1,3.9422]
[1734020954640,2.39907404,3948.2,3947.1,2.5335]
[1734020954841,1.79200902,3948.1,3947.1,2.5335]
[1734020956096,2.39907404,3947.8,3947.1,2.5335]
[1734020956395,4.79200902,3948.1,3947.1,2.5335]
[1734020956396,2.39907404,3947.4,3947.1,2.5335]
[1734020956692,3.65440862,3947.3,3947.1,2.5335]
[1734020956893,1.5386754,3947.2,3947.1,2.5335]
[1734020957097,2.28998367,3947.2,3947.1,2.5335]
[1734020957575,2.31531689,3947.2,3947.1,2.5335]
[1734020958293,0.55,3947.1,3945.6,1.4667]
[1734020958496,2.39907404,3946.6,3945.6,1.4667]
[1734020958794,0.02533322,3946.5,3945.6,1.4667]
[1734020959019,0.24244073,3946.4,3945.6,1.4667]
[1734020959183,0.02533322,3946.3,3945.6,1.4667]
[1734020959591,0.24244073,3946.4,3945.6,1.4667]
[1734020959791,0.02533322,3946.9,3945.6,1.4667]
[1734020960686,0.02533322,3947.0,3945.6,1.4667]
[1734020960882,0.17382654,3947.0,3945.7,0.14667]
[1734020964118,0.17382654,3947.0,3945.6,1.4667]
[1734020964814,2.57290058,3947.0,3945.6,1.4667]
[1734020965033,0.07908165,3946.9,3945.6,1.4667]
[1734020965314,0.02533322,3946.8,3945.6,1.4667]
[1734020966303,0.104424,3946.9,3945.6,1.4667]
[1734020966488,0.2775832,3946.8,3945.6,1.4667]
[1734020966809,0.02533322,3946.7,3945.6,1.4667]
[1734020969380,1.5041,3946.6,3944.8,1.5461]
[1734020969579,0.02533322,3946.5,3945.3,1.5514]
[1734020970584,0.2775832,3946.8,3945.3,1.5514]
[1734020970787,0.20923486,3946.7,3945.3,1.90654]
[1734020971485,0.20923486,3946.7,3945.3,1.5514]
[1734020971883,0.18390164,3946.7,3945.3,1.5514]
[1734020972190,0.02533322,3946.6,3945.3,1.5514]
[1734020972714,0.18390164,3946.7,3945.3,1.5514]
[1734020972915,1.5361,3947.0,3945.3,1.5514]
[1734020973090,1.58421645,3948.0,3945.3,1.5514]
[1734020973091,1.4511,3948.0,3945.8,1.5589]
[1734020973290,1.4511,3948.0,3946.5,2.0]
[1734020973516,1.4511,3948.0,3946.6,1.5589]
[1734020973820,0.02533322,3948.5,3946.6,1.5589]
[1734020973821,1.52843322,3948.5,3947.0,2.0]
[1734020973991,0.02533322,3948.4,3947.1,1.4293]
[1734020976888,1.55616812,3949.2,3947.2,0.0253306]
[1734020977090,0.02533322,3949.1,3947.1,1.72289494]
[1734020977289,0.02533322,3949.1,3947.1,1.4293]
[1734020978201,0.02533322,3949.1,3947.5,2.0]
[1734020978524,1.4298,3949.2,3948.0,2.0]
[1734020978688,1.54733322,3949.9,3948.1,1.5414]
[1734020978890,1.522,3949.9,3948.1,1.5414]
[1734020979296,1.54733322,3949.9,3948.1,1.5414]
[1734020979707,2.39907404,3949.6,3948.1,1.5414]
[1734020980024,0.2399074,3949.5,3948.0,1.5414]
[1734020980228,1.522,3949.9,3948.0,1.5414]
[1734020980625,1.54733322,3949.9,3948.0,1.5414]
[1734020981127,2.39907404,3949.5,3948.0,1.5414]
[1734020981327,0.02533322,3949.4,3948.0,1.5414]
[1734020981502,3.92107404,3949.9,3948.0,1.5414]
[1734020981703,0.43040136,3949.8,3948.0,1.5414]
[1734020984631,2.39907404,3949.1,3948.0,1.5414]
[1734020984826,1.48843322,3949.0,3948.0,1.5414]
[1734020984998,1.48843322,3949.0,3946.7,2.0]
[1734020984999,1.48843322,3949.0,3946.8,1.4852]
[1734020986809,2.39907404,3948.3,3946.8,1.4852]
[1734020987135,0.26524062,3948.2,3946.8,1.4852]
[1734020987341,1.4293,3948.1,3946.8,1.4852]
[1734020987522,0.02533322,3948.0,3946.8,1.4852]
[1734020989152,1.58583322,3948.5,3946.8,1.4852]
[1734020989429,0.02533322,3948.4,3946.8,1.5337]
[1734020990503,2.39907404,3948.3,3946.8,1.5337]
[1734020990849,0.42382395,3948.2,3946.8,1.5337]
[1734020991850,1.513,3948.1,3946.1,1.4878]
[1734020992016,0.02533322,3948.0,3946.1,1.4878]
[1734020994810,2.39907404,3947.5,3946.1,1.4878]
[1734020995013,3.95097404,3946.8,3946.1,1.4878]
[1734020995213,0.02533322,3946.7,3944.7,1.5549]
[1734020995900,3.95097404,3946.8,3944.7,1.5549]
[1734020995901,1.5519,3946.8,3945.1,1.5549]
[1734020996109,0.02533322,3946.7,3945.1,1.5549]
[1734020996464,0.02533322,3947.4,3945.4,2.0]
[1734020996738,4.71232685,3948.9,3945.4,2.0]
[1734020996739,1.57723322,3947.9,3946.0,1.5549]
[1734020997253,0.02533322,3947.9,3946.0,1.5549]
[1734020997625,0.02533322,3947.9,3946.1,1.5552]
[1734020998033,0.02533322,3947.9,3946.2,1.5552]
[1734020998430,0.02533322,3947.9,3946.2,2.5341]
[1734020998751,0.02533322,3947.9,3946.3,1.79551]
[1734020998953,0.02533322,3947.9,3946.3,2.78741]
[1734020999250,1.5519,3948.2,3946.5,1.53]
[1734020999577,0.02533322,3948.1,3946.9,1.53]
[1734021000541,5.27950944,3948.3,3946.9,4.0636]
[1734021000542,0.02533322,3948.2,3946.9,4.0636]
[1734021000740,0.53048427,3948.1,3946.9,4.0636]
[1734021001254,0.02533322,3948.0,3946.9,4.0636]
[1734021001418,0.53048427,3948.1,3946.9,4.0636]
[1734021001617,5.27950944,3948.3,3947.0,1.4749]
[1734021001813,5.27950944,3948.3,3947.2,2.0]
[1734021002013,5.27950944,3948.3,3947.3,1.5146]
[1734021002214,5.27950944,3948.3,3947.3,4.048]
[1734021002215,0.02533322,3948.2,3947.3,4.048]
[1734021003059,5.27950944,3948.3,3947.3,4.048]
[1734021003060,5.30484266,3948.3,3947.3,4.048]
[1734021003255,1.4952,3948.0,3947.3,2.5334]
[1734021003423,0.02533322,3947.9,3947.3,2.5334]
[1734021003826,3.0,3947.6,3947.3,2.5334]
[1734021004154,1.4952,3947.4,3947.3,2.5334]
[1734021004380,1.4952,3947.4,3944.3,0.25]
[1734021004381,2.0452,3947.4,3945.7,1.5328]
[1734021004553,2.9530829,3947.2,3945.7,1.5328]
[1734021004718,0.02533322,3947.1,3945.7,1.5328]
[1734021005123,1.4997,3947.0,3945.7,1.5328]
[1734021005360,0.02533322,3946.9,3944.9,1.4635]
[1734021005821,0.02533322,3946.9,3945.1,2.0]
[1734021006017,0.45250332,3946.8,3945.3,1.4375]
[1734021006240,0.02533322,3946.7,3945.3,1.4375]
[1734021006574,0.45250332,3946.8,3945.3,1.4375]
[1734021006575,0.46635761,3946.8,3945.3,1.4375]
[1734021006790,0.02533322,3946.7,3945.3,1.4375]
[1734021007275,0.01385429,3946.8,3945.3,1.4375]
[1734021007440,0.03918751,3946.8,3945.3,1.4375]
[1734021007843,0.01385429,3946.8,3945.3,1.4375]
[1734021008854,0.03918751,3946.8,3945.3,1.4375]
[1734021009059,0.03918751,3946.8,3945.4,0.36375]
[1734021009255,0.01385429,3946.8,3945.5,1.4177]
[1734021009424,0.01385429,3946.8,3945.5,2.0]
[1734021009624,0.01385429,3946.8,3945.6,1.4508]
[1734021009824,0.01385429,3946.8,3946.0,1.4508]
[1734021010023,0.01385429,3946.8,3946.2,1.4508]
[1734021011680,0.01385429,3946.8,3946.1,0.28027306]
[1734021011681,0.01385429,3946.8,3946.3,2.0]
[1734021011846,0.01385429,3946.8,3946.4,1.47613391]
[1734021012030,0.01385429,3946.8,3946.7,3.4508]
[1734021012661,0.01385429,3946.8,3946.7,1.4508]
[1734021017282,0.01385429,3946.8,3946.2,1.5156]
[1734021018013,0.01385429,3946.8,3946.2,1.86716]
[1734021019567,0.01385429,3946.8,3946.2,1.5156]
[1734021020152,0.01385429,3946.8,3945.6,2.0]
[1734021020153,0.01385429,3946.8,3945.6,1.4822]
[1734021020373,1.4406,3946.7,3945.6,1.4822]
[1734021020572,0.02533322,3946.6,3945.6,1.4822]
[1734021021875,0.02533322,3946.6,3945.3,1.4499]
[1734021022158,0.14797875,3946.5,3945.3,1.4499]
[1734021022557,0.02533322,3946.4,3945.3,1.4499]
[1734021023173,0.02533322,3946.4,3944.9,2.0]
[1734021023398,0.02533322,3946.4,3944.9,3.4499]
[1734021023573,1.5629,3946.3,3944.9,3.4499]
[1734021023771,0.19895442,3946.2,3944.9,1.4499]
[1734021024549,2.40121094,3945.9,3944.9,1.4499]
[1734021024795,0.02533322,3945.8,3944.8,0.44]
[1734021024954,1.5634,3945.7,3944.8,0.44]
[1734021025454,0.02533322,3946.1,3944.8,0.44]
[1734021025455,1.53563322,3946.1,3944.8,0.44]
[1734021025660,0.17092544,3946.0,3944.8,0.44]
[1734021026068,0.17092544,3946.0,3944.9,0.02216742]
[1734021026069,0.02533322,3945.9,3944.9,0.02216742]
[1734021026270,0.02533322,3945.9,3944.8,0.44]
[1734021026554,0.17092544,3946.0,3944.8,0.44]
[1734021026753,2.40121094,3945.4,3944.8,0.44]
[1734021027065,1.5485,3945.2,3944.8,0.44]
[1734021027281,0.02533322,3945.1,3944.8,0.44]
[1734021027990,1.5485,3945.2,3944.8,0.44]
[1734021028191,3.96251094,3945.0,3943.0,1.4238]
[1734021028364,3.96251094,3945.0,3943.0,3.4238]
[1734021028365,1.5613,3944.9,3943.0,3.4238]
[1734021028757,2.40121094,3944.5,3943.0,3.4238]
[1734021028954,0.02533322,3944.8,3943.0,3.4238]
[1734021029804,1.5613,3944.6,3943.0,3.4238]
[1734021030090,1.5613,3944.4,3942.6,3.4238]
[1734021030389,0.02533322,3944.3,3942.6,3.4238]
[1734021030551,1.5006,3944.2,3942.6,3.4238]
[1734021031002,0.02533322,3944.1,3942.6,1.4238]
[1734021031840,1.5006,3944.2,3942.6,1.4238]
[1734021032058,0.15006,3944.1,3942.8,0.14288]
[1734021032205,2.95841189,3945.1,3942.9,0.02535992]
[1734021032406,1.58126231,3945.8,3943.1,1.4911]
[1734021032407,1.5501,3945.0,3943.1,1.4911]
[1734021032956,1.5501,3945.0,3943.0,2.0]
[1734021032957,1.5501,3945.0,3943.7,1.4911]
[1734021033178,1.5501,3945.8,3943.7,1.4911]
[1734021033461,1.57543322,3945.8,3943.7,1.4911]
[1734021033663,2.95841189,3945.0,3943.7,1.4911]
[1734021033959,2.95841189,3945.0,3943.0,0.44]
[1734021033960,1.44523322,3944.9,3943.1,1.5238]
[1734021034311,1.4199,3944.5,3943.0,0.44]
[1734021034657,1.44523322,3944.5,3943.0,0.44]
[1734021035333,1.44218374,3944.5,3943.0,0.44]
[1734021035643,0.44005956,3944.4,3943.0,0.63688]
[1734021035840,0.02533322,3944.3,3943.0,0.63688]
[1734021036426,0.46539278,3944.4,3943.0,0.63688]
[1734021036823,0.46539278,3944.4,3943.0,0.44]
[1734021037013,2.95841189,3944.2,3943.0,0.44]
[1734021037710,2.98374511,3944.2,3943.0,0.44]
[1734021037945,0.44005956,3944.4,3943.0,0.44]
[1734021038137,0.02533322,3944.3,3943.0,0.44]
[1734021038326,1.4709,3944.2,3943.0,0.44]
[1734021038512,0.19362928,3944.1,3943.0,0.44]
[1734021039123,1.4709,3944.2,3943.0,0.44]
[1734021039547,1.5316,3944.5,3943.1,1.5255]
[1734021040050,2.95841189,3945.4,3943.1,1.5255]
[1734021040248,2.95841189,3945.4,3943.4,2.0]
[1734021040449,1.4529,3945.3,3943.5,1.5192]
[1734021040756,1.4529,3945.3,3943.6,0.35192]
[1734021040757,2.95841189,3944.9,3943.6,0.35192]
[1734021040915,1.54253322,3944.8,3943.5,1.5192]
[1734021041315,1.54253322,3944.8,3943.1,1.5411]
[1734021041745,1.54253322,3944.8,3943.0,2.44]
[1734021041746,2.95841189,3944.5,3943.0,0.44]
[1734021041913,1.5412,3944.3,3943.0,0.44]
[1734021042121,2.95841189,3944.1,3943.0,0.44]
[1734021042334,0.45249451,3944.0,3943.0,0.44]
[1734021042582,1.5412,3944.3,3943.0,0.44]
[1734021044537,0.02533322,3944.2,3943.0,0.44]
[1734021044733,1.5412,3944.3,3943.0,0.44]
[1734021045138,1.56653322,3944.3,3943.0,0.44]
[1734021048294,0.55,3944.2,3943.0,0.44]
[1734021048440,0.23698654,3944.1,3943.0,0.44]
[1734021049279,2.95841189,3943.7,3943.0,0.44]
[1734021049453,1.4559,3943.5,3943.0,0.44]
[1734021049646,0.02533322,3943.4,3943.0,0.44]
[1734021050056,2.95841189,3943.3,3943.0,0.44]
[1734021050251,0.02533322,3943.2,3943.0,0.44]
[1734021050480,0.29837451,3943.1,3943.0,0.44]
[1734021051062,2.38487451,3943.1,3943.0,0.44]
[1734021051260,4.7913615,3943.1,3943.0,0.44]
[1734021052083,4.81669472,3943.1,3943.0,0.44]
[1734021052252,4.9904,3943.0,3942.7,0.005]
[1734021052445,0.55,3942.8,3942.7,0.005]
[1734021052672,0.55,3942.9,3942.7,0.005]
[1734021052983,1.4404,3943.0,3942.7,0.005]
[1734021053358,0.02533322,3942.9,3942.7,0.005]
[1734021053881,0.57533322,3942.9,3942.7,0.005]
[1734021054092,0.47205947,3942.8,3942.7,0.005]
[1734021054289,1.02205947,3942.8,3942.7,0.005]
[1734021054645,2.55585947,3942.8,3942.7,0.005]
[1734021054879,5.58119269,3942.8,3942.7,0.005]
[1734021055054,5.55585947,3942.8,3942.7,0.005]
[1734021062256,3.55,3942.7,3941.7,0.1646646]
[1734021062397,0.55,3942.5,3941.7,0.1646646]
[1734021062603,3.55,3942.5,3941.7,0.1646646]
[1734021062847,2.40648699,3942.2,3941.7,0.1646646]
[1734021062999,6.29373644,3942.8,3941.8,1.4679]
[1734021063199,5.27950944,3942.8,3941.8,1.4679]
[1734021063416,5.27950944,3942.8,3941.9,0.16325646]
[1734021063665,5.27950944,3942.8,3942.0,1.467]
[1734021063666,0.02533322,3942.7,3942.0,1.467]
[1734021063999,5.27950944,3942.8,3942.1,0.02483351]
[1734021064402,5.27950944,3942.8,3942.0,1.467]
[1734021064656,5.27950944,3942.8,3942.2,0.02421327]
[1734021064795,5.27950944,3942.8,3942.1,0.02421256]
[1734021064998,5.27950944,3942.8,3942.3,0.02416537]
[1734021065199,5.27950944,3942.8,3942.3,1.5626]
[1734021065428,5.27950944,3942.8,3942.5,1.5626]
[1734021065951,5.27950944,3942.8,3942.6,0.02393453]
[1734021067299,5.27950944,3942.8,3942.7,1.4781]
[1734021067533,5.27950944,3942.8,3942.7,1.84956355]
[1734021068589,5.27950944,3942.8,3942.7,1.50175355]
[1734021070937,5.27950944,3942.8,3942.7,3.50175355]
[1734021071501,5.27950944,3942.8,3942.7,1.50175355]
[1734021082117,5.27950944,3942.8,3942.7,4.03805355]
[1734021084330,4.62716075,3942.8,3942.7,7.60810851]
[1734021084554,1.013471,3946.6,3942.7,7.60810851]
[1734021084555,1.4712,3945.1,3943.6,2.0]
[1734021084842,2.63993414,3946.4,3943.6,2.0]
[1734021084843,1.4712,3945.9,3944.2,1.4883]
[1734021085013,1.4712,3945.9,3944.2,4.0237]
[1734021085210,0.07910916,3945.8,3944.2,4.0237]
[1734021085409,0.18289746,3945.7,3944.2,4.0237]
[1734021087336,0.15756424,3945.7,3944.2,4.0237]
[1734021087540,0.15756424,3945.7,3944.6,2.0]
[1734021087774,1.4712,3945.9,3944.7,1.4627]
[1734021087991,0.02533322,3945.8,3944.7,3.9977]
[1734021088273,2.40648699,3945.7,3944.7,3.9977]
[1734021088473,0.02533322,3945.6,3944.7,3.9977]
[1734021088677,0.02533322,3945.6,3944.7,2.535]
[1734021088988,0.24318202,3945.5,3944.7,2.535]
[1734021089190,1.4712,3945.9,3944.7,2.535]
[1734021089692,1.4693,3946.7,3945.0,2.0]
[1734021089833,1.4693,3946.7,3945.1,1.4182]
[1734021090035,0.01385429,3946.8,3945.1,1.4182]
[1734021090036,0.01385429,3946.8,3945.6,2.0]
[1734021090279,0.01385429,3946.8,3946.1,2.0]
[1734021090445,0.01385429,3946.8,3946.2,1.4182]
[1734021090777,0.01385429,3946.8,3946.2,3.9523]
[1734021095564,0.01385429,3946.8,3946.6,1.4653]
[1734021095783,0.01385429,3946.8,3946.6,3.9991]
[1734021096446,0.01385429,3946.8,3946.6,2.5338]
[1734021096650,0.01385429,3946.8,3946.7,1.4973]
[1734021096862,0.01385429,3946.8,3946.7,4.4711]
[1734021097079,0.01385429,3946.8,3946.7,2.9738]
[1734021097279,0.01385429,3946.8,3946.7,4.4711]
[1734021097850,0.01385429,3946.8,3946.7,4.496429]
[1734021098292,0.01385429,3946.8,3946.7,9.496429]
[1734021098488,0.01385429,3946.8,3946.7,6.4711]
[1734021098887,0.01385429,3946.8,3946.7,2.9738]
[1734021101168,0.31068527,3946.8,3946.7,2.9738]
[1734021101357,1.77068527,3946.8,3946.7,2.9738]
[1734021101890,2.32068527,3946.8,3946.7,2.9738]
[1734021102060,2.32068527,3946.8,3946.7,2.67611943]
[1734021102469,4.85437527,3946.8,3946.7,2.5338]
[1734021102670,4.85437527,3946.8,3944.3,0.01797284]
[1734021102671,2.53384,3946.6,3944.3,0.01797284]
[1734021102854,4.1245859,3946.8,3944.0,1.4529]
[1734021102855,1.4419,3945.7,3944.0,1.4529]
[1734021103055,1.4419,3945.7,3943.8,0.14]
[1734021103056,1.4419,3945.1,3943.8,0.14]
[1734021103373,0.02533322,3945.0,3943.8,0.14]
[1734021104004,1.4419,3945.1,3943.8,0.14]
[1734021104210,2.95445546,3945.7,3943.9,2.02535132]
[1734021104410,0.29544555,3945.6,3944.0,1.69463513]
[1734021104563,1.4628,3945.7,3944.0,1.83463513]
[1734021104757,1.4628,3945.7,3944.4,2.0]
[1734021104958,2.95445546,3946.2,3944.4,2.0]
[1734021105159,1.50853322,3946.1,3944.4,2.0]
[1734021105661,1.4832,3946.1,3944.4,2.0]
[1734021105914,0.44376555,3946.0,3944.4,2.2]
[1734021106234,0.46909877,3946.0,3944.4,2.2]
[1734021106738,0.46909877,3946.0,3944.0,1.6181]
[1734021107326,0.44376555,3946.0,3944.0,1.6181]
[1734021107945,0.02533322,3945.9,3944.0,1.6181]
[1734021108434,0.02533322,3945.9,3944.0,0.14]
[1734021108435,2.95445546,3945.2,3944.0,0.14]
[1734021108748,1.44583322,3945.1,3944.0,0.14]
[1734021108919,0.44002887,3945.0,3944.0,0.14]
[1734021109077,0.02533322,3944.9,3944.0,0.14]
[1734021109728,1.5067,3944.8,3944.0,0.14]
[1734021109941,0.02533322,3944.7,3944.0,0.14]